fUSD/lending_fUSD_20240220
["ID","MTS","AMOUNT","RATE_DAILY","PERIOD"]
[314556473,1708421433586,-500.0,0.00035616,2]
[314556474,1708421433596,-500.0,0.00035616,2]
[314556475,1708421433606,-500.0,0.00035616,2]
[314556476,1708421433617,-436.37655937,0.00035616,2]
[314556477,1708421433626,-500.0,0.00035616,2]
[314556478,1708421433638,-500.0,0.00035616,2]
[314556479,1708421433648,-500.0,0.00035616,2]
[314556480,1708421433657,-500.0,0.00035616,2]
[314556481,1708421433667,-500.0,0.00035616,2]
[314556482,1708421433677,-500.0,0.00035616,2]
[314556483,1708421433686,-500.0,0.00035616,2]
[314556484,1708421433697,-500.0,0.00035616,2]
[314556485,1708421433707,-1142.3,0.00035616,2]
[314556486,1708421433924,-500.0,0.00035616,2]
[314556487,1708421433972,-500.0,0.00035616,2]
[314556488,1708421433981,-500.0,0.00035616,2]
[314556489,1708421433990,-305.89709778,0.00035616,2]
[314556490,1708421433999,-500.0,0.00035616,2]
[314556491,1708421434009,-500.0,0.00035616,2]
[314556492,1708421434018,-500.0,0.00035616,2]
[314556493,1708421434027,-500.0,0.00035616,2]
[314556494,1708421434036,-500.0,0.00035616,2]
[314556495,1708421434050,-500.0,0.00035616,2]
[314556496,1708421434060,-767.3,0.00035616,2]
[314556497,1708421434070,-500.0,0.00035616,2]
[314556498,1708421434080,-500.0,0.00035616,2]
[314556499,1708421434092,-1231.39,0.00035616,2]
[314556500,1708421434102,-519.5087692,0.00035616,2]
[314556501,1708421434112,-500.0,0.00035616,2]
[314556502,1708421434123,-500.0,0.00035616,2]
[314556503,1708421434133,-500.0,0.00035616,2]
[314556504,1708421434142,-500.0,0.00035616,2]
[314556505,1708421434154,-500.0,0.00035616,2]
[314556506,1708421434164,-500.0,0.00035616,2]
[314556507,1708421434174,-500.0,0.00035616,2]
[314556508,1708421434184,-500.0,0.00035616,2]
[314556509,1708421434194,-500.0,0.00035616,2]
[314556510,1708421434204,-500.0,0.00035616,2]
[314556511,1708421434213,-500.0,0.00035616,2]
[314556512,1708421434223,-500.0,0.00035616,2]
[314556513,1708421434233,-500.0,0.00035616,2]
[314556514,1708421434243,-500.0,0.00035616,2]
[314556515,1708421434253,-500.0,0.00035616,2]
[314556516,1708421434263,-500.0,0.00035616,2]
[314556517,1708421434273,-500.0,0.00035616,2]
[314556518,1708421434283,-285.56172189,0.00035616,2]
[314556519,1708421434293,-500.0,0.00035616,2]
[314556520,1708421434303,-500.0,0.00035616,2]
[314556521,1708421434312,-219.88129447,0.00035616,2]
[314556522,1708421434322,-500.0,0.00035616,2]
[314556523,1708421434333,-500.0,0.00035616,2]
[314556524,1708421434342,-631.57,0.00035616,2]
[314556525,1708421434352,-342.63227385,0.00035616,2]
[314556526,1708421434362,-500.0,0.00035616,2]
[314556527,1708421434372,-500.0,0.00035616,2]
[314556528,1708421434381,-500.0,0.00035616,2]
[314556529,1708421434391,-500.0,0.00035616,2]
[314556530,1708421434403,-500.0,0.00035616,2]
[314556531,1708421434412,-500.0,0.00035616,2]
[314556532,1708421434421,-500.0,0.00035616,2]
[314556533,1708421434432,-500.0,0.00035616,2]
[314556534,1708421434441,-500.0,0.00035616,2]
[314556535,1708421434452,-283.09530053,0.00035616,2]
[314556536,1708421434461,-500.0,0.00035616,2]
[314556537,1708421434471,-500.0,0.00035616,2]
[314556538,1708421434482,-500.0,0.00035616,2]
[314556539,1708421434492,-500.0,0.00035616,2]
[314556540,1708421434503,-500.0,0.00035616,2]
[314556541,1708421434513,-500.0,0.00035616,2]
[314556542,1708421434523,-500.0,0.00035616,2]
[314556543,1708421434534,-500.0,0.00035616,2]
[314556544,1708421434544,-500.0,0.00035616,2]
[314556545,1708421434556,-500.0,0.00035616,2]
[314556546,1708421434573,-500.0,0.00035616,2]
[314556547,1708421434583,-500.0,0.00035616,2]
[314556548,1708421434592,-500.0,0.00035616,2]
[314556549,1708421434603,-500.0,0.00035616,2]
[314556550,1708421434613,-500.0,0.00035616,2]
[314556551,1708421434623,-500.0,0.00035616,2]
[314556552,1708421434633,-500.0,0.00035616,2]
[314556553,1708421434644,-500.0,0.00035616,2]
[314556554,1708421434656,-500.0,0.00035616,2]
[314556555,1708421434666,-494.64841614,0.00035616,2]
[314556556,1708421434676,-500.0,0.00035616,2]
[314556557,1708421434686,-500.0,0.00035616,2]
[314556558,1708421434696,-500.0,0.00035616,2]
[314556559,1708421434705,-500.0,0.00035616,2]
[314556560,1708421434715,-500.0,0.00035616,2]
[314556561,1708421434725,-500.0,0.00035616,2]
[314556562,1708421434735,-502.72,0.00035616,2]
[314556563,1708421434745,-500.0,0.00035616,2]
[314556564,1708421434755,-500.0,0.00035616,2]
[314556565,1708421434765,-500.0,0.00035616,2]
[314556566,1708421434775,-500.0,0.00035616,2]
[314556567,1708421434785,-500.0,0.00035616,2]
[314556568,1708421434794,-500.0,0.00035616,2]
[314556569,1708421434804,-500.0,0.00035616,2]
[314556570,1708421434813,-500.0,0.00035616,2]
[314556571,1708421434824,-500.0,0.00035616,2]
[314556572,1708421434833,-500.0,0.00035616,2]
[314556573,1708421434843,-500.0,0.00035616,2]
[314556574,1708421434854,-500.0,0.00035616,2]
[314556575,1708421434864,-500.0,0.00035616,2]
[314556576,1708421434874,-500.0,0.00035616,2]
[314556577,1708421434885,-500.0,0.00035616,2]
[314556578,1708421434894,-500.0,0.00035616,2]
[314556579,1708421434905,-500.0,0.00035616,2]
[314556580,1708421434916,-500.0,0.00035616,2]
[314556581,1708421434926,-500.0,0.00035616,2]
[314556582,1708421434937,-487.66825247,0.00035616,2]
[314556583,1708421434949,-500.0,0.00035616,2]
[314556584,1708421434959,-500.0,0.00035616,2]
[314556585,1708421434969,-500.0,0.00035616,2]
[314556586,1708421434979,-500.0,0.00035616,2]
[314556587,1708421434989,-500.0,0.00035616,2]
[314556588,1708421434998,-500.0,0.00035616,2]
[314556589,1708421435008,-1000.0,0.00035616,2]
[314556590,1708421435018,-500.0,0.00035616,2]
[314556591,1708421435028,-500.0,0.00035616,2]
[314556592,1708421435038,-500.0,0.00035616,2]
[314556593,1708421435048,-500.0,0.00035616,2]
[314556594,1708421435057,-509.72,0.00035616,2]
[314556595,1708421435067,-500.0,0.00035616,2]
[314556596,1708421435077,-527.65419554,0.00035616,2]
[314556597,1708421435087,-500.0,0.00035616,2]
[314556598,1708421435096,-500.0,0.00035616,2]
[314556599,1708421435110,-500.0,0.00035616,2]
[314556600,1708421435120,-536.57226261,0.00035616,2]
[314556601,1708421435130,-500.0,0.00035616,2]
[314556602,1708421435140,-172.30393202,0.00035616,2]
[314556603,1708421435151,-500.0,0.00035616,2]
[314556604,1708421435161,-500.0,0.00035616,2]
[314556605,1708421435171,-500.0,0.00035616,2]
[314556606,1708421435181,-500.0,0.00035616,2]
[314556607,1708421435191,-500.0,0.00035616,2]
[314556608,1708421435202,-500.0,0.00035616,2]
[314556609,1708421435212,-500.0,0.00035616,2]
[314556610,1708421435222,-500.0,0.00035616,2]
[314556611,1708421435232,-500.0,0.00035616,2]
[314556612,1708421435242,-500.0,0.00035616,2]
[314556613,1708421435253,-500.0,0.00035616,2]
[314556614,1708421435264,-500.0,0.00035616,2]
[314556615,1708421435274,-500.0,0.00035616,2]
[314556616,1708421435285,-500.0,0.00035616,2]
[314556617,1708421435295,-154.86,0.00035616,2]
[314556618,1708421435305,-500.0,0.00035616,2]
[314556619,1708421435315,-500.0,0.00035616,2]
[314556620,1708421435326,-500.0,0.00035616,2]
[314556621,1708421435336,-500.0,0.00035616,2]
[314556622,1708421435346,-500.0,0.00035616,2]
[314556623,1708421435356,-500.0,0.00035616,2]
[314556624,1708421435366,-500.0,0.00035616,2]
[314556625,1708421435376,-500.0,0.00035616,2]
[314556626,1708421435386,-500.0,0.00035616,2]
[314556627,1708421435396,-500.0,0.00035616,2]
[314556628,1708421435407,-500.0,0.00035616,2]
[314556629,1708421435417,-753.24,0.00035616,2]
[314556630,1708421435427,-500.0,0.00035616,2]
[314556631,1708421435437,-500.0,0.00035616,2]
[314556632,1708421435446,-500.0,0.00035616,2]
[314556633,1708421435456,-500.0,0.00035616,2]
[314556634,1708421435465,-500.0,0.00035616,2]
[314556635,1708421435475,-500.0,0.00035616,2]
[314556636,1708421435485,-507.07,0.00035616,2]
[314556637,1708421435496,-500.0,0.00035616,2]
[314556638,1708421435506,-500.0,0.00035616,2]
[314556639,1708421435515,-500.0,0.00035616,2]
[314556640,1708421435525,-500.0,0.00035616,2]
[314556641,1708421435537,-500.0,0.00035616,2]
[314556642,1708421435547,-500.0,0.00035616,2]
[314556643,1708421435559,-500.0,0.00035616,2]
[314556644,1708421435569,-500.0,0.00035616,2]
[314556645,1708421435579,-500.0,0.00035616,2]
[314556646,1708421435589,-500.0,0.00035616,2]
[314556647,1708421435599,-500.0,0.00035616,2]
[314556648,1708421435609,-500.0,0.00035616,2]
[314556649,1708421435618,-500.0,0.00035616,2]
[314556650,1708421435628,-500.0,0.00035616,2]
[314556651,1708421435638,-500.0,0.00035616,2]
[314556652,1708421435648,-500.0,0.00035616,2]
[314556653,1708421435658,-500.0,0.00035616,2]
[314556654,1708421435668,-500.0,0.00035616,2]
[314556655,1708421435677,-500.0,0.00035616,2]
[314556656,1708421435687,-500.0,0.00035616,2]
[314556657,1708421435697,-500.0,0.00035616,2]
[314556658,1708421435707,-500.0,0.00035616,2]
[314556659,1708421435717,-500.0,0.00035616,2]
[314556660,1708421435727,-544.88,0.00035616,2]
[314556661,1708421435737,-500.0,0.00035616,2]
[314556662,1708421435747,-500.0,0.00035616,2]
[314556663,1708421435757,-670.63,0.00035616,2]
[314556664,1708421435767,-500.0,0.00035616,2]
[314556665,1708421435777,-500.0,0.00035616,2]
[314556666,1708421435786,-500.0,0.00035616,2]
[314556667,1708421435795,-500.0,0.00035616,2]
[314556668,1708421435805,-519.26,0.00035616,2]
[314556669,1708421435814,-500.0,0.00035616,2]
[314556670,1708421435824,-500.0,0.00035616,2]
[314556671,1708421435834,-500.0,0.00035616,2]
[314556672,1708421435843,-506.75,0.00035616,2]
[314556673,1708421435853,-500.0,0.00035616,2]
[314556674,1708421435863,-500.0,0.00035616,2]
[314556675,1708421435872,-500.0,0.00035616,2]
[314556676,1708421435882,-637.86,0.00035616,2]
[314556677,1708421435892,-500.0,0.00035616,2]
[314556678,1708421435902,-500.0,0.00035616,2]
[314556679,1708421435911,-500.0,0.00035616,2]
[314556680,1708421435920,-500.0,0.00035616,2]
[314556681,1708421435929,-385.34429368,0.00035616,2]
[314556682,1708421435939,-2713.96,0.00035616,2]
[314556683,1708421435948,-616.72,0.00035616,2]
[314556684,1708421435958,-500.0,0.00035616,2]
[314556685,1708421435967,-500.0,0.00035616,2]
[314556686,1708421435977,-500.0,0.00035616,2]
[314556687,1708421435987,-500.0,0.00035616,2]
[314556688,1708421435997,-500.0,0.00035616,2]
[314556689,1708421436006,-572.98122381,0.00035616,2]
[314556690,1708421436016,-500.0,0.00035616,2]
[314556691,1708421436026,-1397.77,0.00035616,2]
[314556692,1708421436035,-500.0,0.00035616,2]
[314556693,1708421436045,-500.0,0.00035616,2]
[314556694,1708421436055,-500.0,0.00035616,2]
[314556695,1708421436064,-500.0,0.00035616,2]
[314556696,1708421436074,-701.14,0.00035616,2]
[314556697,1708421436083,-500.0,0.00035616,2]
[314556698,1708421436093,-1270.07,0.00035616,2]
[314556699,1708421436103,-1054.4,0.00035616,2]
[314556700,1708421436112,-635.7,0.00035616,2]
[314556701,1708421436122,-500.0,0.00035616,2]
[314556702,1708421436132,-500.0,0.00035616,2]
[314556703,1708421436142,-532.86511459,0.00035616,2]
[314556704,1708421436153,-500.0,0.00035616,2]
[314556705,1708421436162,-503.29,0.00035616,2]
[314556706,1708421436172,-702.41,0.00035616,2]
[314556707,1708421436182,-500.0,0.00035616,2]
[314556708,1708421436192,-500.0,0.00035616,2]
[314556709,1708421436201,-500.0,0.00035616,2]
[314556710,1708421436211,-500.0,0.00035616,2]
[314556711,1708421436221,-500.0,0.00035616,2]
[314556712,1708421436231,-2300.26,0.00035616,2]
[314556713,1708421436241,-500.0,0.00035616,2]
[314556714,1708421436251,-890.36,0.00035616,2]
[314556715,1708421436261,-500.0,0.00035616,2]
[314556716,1708421436271,-500.0,0.00035616,2]
[314556717,1708421436281,-500.0,0.00035616,2]
[314556718,1708421436291,-500.0,0.00035616,2]
[314556719,1708421436302,-500.0,0.00035616,2]
[314556720,1708421436312,-500.0,0.00035616,2]
[314556721,1708421436322,-1585.3,0.00035616,2]
[314556722,1708421436332,-500.0,0.00035616,2]
[314556723,1708421436342,-1031.66,0.00035616,2]
[314556724,1708421436352,-2064.19,0.00035616,2]
[314556725,1708421436362,-500.0,0.00035616,2]
[314556726,1708421436372,-1577.32,0.00035616,2]
[314556727,1708421436381,-912.48,0.00035616,2]
[314556728,1708421436392,-657.98,0.00035616,2]
[314556729,1708421436403,-500.0,0.00035616,2]
[314556730,1708421436413,-500.0,0.00035616,2]
[314556731,1708421436422,-766.75,0.00035616,2]
[314556732,1708421436432,-511.0,0.00035616,2]
[314556733,1708421436443,-500.0,0.00035616,2]
[314556734,1708421436453,-860.25,0.00035616,2]
[314556735,1708421436462,-500.0,0.00035616,2]
[314556736,1708421436546,-1237.97,0.00035616,2]
[314556737,1708421436556,-2190.29,0.00035616,2]
[314556738,1708421436565,-500.0,0.00035616,2]
[314556739,1708421436576,-500.0,0.00035616,2]
[314556740,1708421436586,-500.0,0.00035616,2]
[314556741,1708421436596,-500.0,0.00035616,2]
[314556742,1708421436605,-2082.25,0.00035616,2]
[314556743,1708421436615,-500.0,0.00035616,2]
[314556744,1708421436625,-771.44,0.00035616,2]
[314556745,1708421436634,-1075.59,0.00035616,2]
[314556746,1708421436644,-500.0,0.00035616,2]
[314556747,1708421436655,-567.33,0.00035616,2]
[314556748,1708421436664,-500.0,0.00035616,2]
[314556749,1708421436673,-500.0,0.00035616,2]
[314556750,1708421436683,-1298.92,0.00035616,2]
[314556751,1708421436692,-500.0,0.00035616,2]
[314556752,1708421436701,-500.0,0.00035616,2]
[314556753,1708421436710,-500.0,0.00035616,2]
[314556754,1708421436720,-1233.39,0.00035616,2]
[314556755,1708421436729,-746.8,0.00035616,2]
[314556756,1708421436739,-1448.15,0.00035616,2]
[314556757,1708421436749,-913.41,0.00035616,2]
[314556758,1708421436758,-716.2,0.00035616,2]
[314556759,1708421436767,-500.0,0.00035616,2]
[314556760,1708421436776,-588.55,0.00035616,2]
[314556761,1708421436786,-767.05,0.00035616,2]
[314556762,1708421436795,-500.0,0.00035616,2]
[314556763,1708421436804,-500.0,0.00035616,2]
[314556764,1708421436813,-1827.85,0.00035616,2]
[314556765,1708421436823,-500.0,0.00035616,2]
[314556766,1708421436832,-500.0,0.00035616,2]
[314556767,1708421436841,-500.0,0.00035616,2]
[314556768,1708421436852,-2206.05,0.00035616,2]
[314556769,1708421436861,-1081.7,0.00035616,2]
[314556770,1708421436872,-500.0,0.00035616,2]
[314556771,1708421436881,-814.1,0.00035616,2]
[314556772,1708421436891,-500.0,0.00035616,2]
[314556773,1708421436902,-1132.23,0.00035616,2]
[314556774,1708421436912,-4143.31,0.00035616,2]
[314556775,1708421436922,-500.0,0.00035616,2]
[314556776,1708421436931,-17162.85,0.00035616,2]
[314556777,1708421436941,-500.0,0.00035616,2]
[314556778,1708421436950,-500.0,0.00035616,2]
[314556779,1708421436960,-500.0,0.00035616,2]
[314556780,1708421436969,-794.49,0.00035616,2]
[314556781,1708421436979,-1914.98,0.00035616,2]
[314556782,1708421436988,-500.0,0.00035616,2]
[314556783,1708421436999,-500.0,0.00035616,2]
[314556784,1708421437009,-981.88,0.00035616,2]
[314556785,1708421437019,-645.76,0.00035616,2]
[314556786,1708421437030,-578.77012252,0.00035616,2]
[314556787,1708421437039,-859.22,0.00035616,2]
[314556788,1708421437048,-500.0,0.00035616,2]
[314556789,1708421437057,-1493.95,0.00035616,2]
[314556790,1708421437067,-500.0,0.00035616,2]
[314556791,1708421437077,-500.0,0.00035616,2]
[314556792,1708421437086,-2177.13,0.00035616,2]
[314556793,1708421437096,-500.0,0.00035616,2]
[314556794,1708421437105,-853.01,0.00035616,2]
[314556795,1708421437114,-539.08,0.00035616,2]
[314556796,1708421437124,-1195.14,0.00035616,2]
[314556797,1708421437133,-474.54733641,0.00035616,2]
[314556798,1708421437143,-500.0,0.00035616,2]
[314556799,1708421437153,-500.0,0.00035616,2]
[314556800,1708421437164,-500.0,0.00035616,2]
[314556801,1708421437174,-913.7,0.00035616,2]
[314556802,1708421437183,-500.0,0.00035616,2]
[314556803,1708421437193,-986.11,0.00035616,2]
[314556804,1708421437202,-943.37,0.00035616,2]
[314556805,1708421437211,-500.0,0.00035616,2]
[314556806,1708421437221,-646.63,0.00035616,2]
[314556807,1708421437230,-500.0,0.00035616,2]
[314556808,1708421437241,-500.0,0.00035616,2]
[314556809,1708421437250,-500.0,0.00035616,2]
[314556810,1708421437260,-3796.68,0.00035616,2]
[314556811,1708421437271,-500.0,0.00035616,2]
[314556812,1708421437281,-500.0,0.00035616,2]
[314556813,1708421437290,-1437.47,0.00035616,2]
[314556814,1708421437300,-452.16457857,0.00035616,2]
[314556815,1708421437309,-2915.93,0.00035616,2]
[314556816,1708421437318,-963.7,0.00035616,2]
[314556817,1708421437327,-500.0,0.00035616,2]
[314556818,1708421437337,-500.0,0.00035616,2]
[314556819,1708421437347,-1199.78,0.00035616,2]
[314556820,1708421437357,-500.0,0.00035616,2]
[314556821,1708421437366,-500.0,0.00035616,2]
[314556822,1708421437376,-7179.66,0.00035616,2]
[314556823,1708421437386,-500.0,0.00035616,2]
[314556824,1708421437395,-500.0,0.00035616,2]
[314556825,1708421437406,-871.3,0.00035616,2]
[314556826,1708421437415,-5981.71,0.00035616,2]
[314556827,1708421437424,-899.2,0.00035616,2]
[314556828,1708421437433,-676.15,0.00035616,2]
[314556829,1708421437443,-678.17,0.00035616,2]
[314556830,1708421437453,-895.76,0.00035616,2]
[314556831,1708421437462,-609.44,0.00035616,2]
[314556832,1708421437472,-652.05,0.00035616,2]
[314556833,1708421437481,-500.0,0.00035616,2]
[314556834,1708421437490,-500.0,0.00035616,2]
[314556835,1708421437498,-2969.0,0.00035616,2]
[314556836,1708421437507,-567.67,0.00035616,2]
[314556837,1708421437516,-500.0,0.00035616,2]
[314556838,1708421437526,-500.0,0.00035616,2]
[314556839,1708421437535,-702.39,0.00035616,2]
[314556840,1708421437545,-1783.1,0.00035616,2]
[314556841,1708421437554,-500.0,0.00035616,2]
[314556842,1708421437564,-500.0,0.00035616,2]
[314556843,1708421437574,-500.0,0.00035616,2]
[314556844,1708421437585,-925.66,0.00035616,2]
[314556845,1708421437594,-500.0,0.00035616,2]
[314556846,1708421437605,-500.0,0.00035616,2]
[314556848,1708421437614,-651.36,0.00035616,2]
[314556850,1708421437623,-500.0,0.00035616,2]
[314556852,1708421437632,-627.84567742,0.00035616,2]
[314556853,1708421437642,-709.0,0.00035616,2]
[314556854,1708421437652,-898.47,0.00035616,2]
[314556855,1708421437662,-500.0,0.00035616,2]
[314556856,1708421437672,-500.0,0.00035616,2]
[314556857,1708421437681,-971.85,0.00035616,2]
[314556858,1708421437690,-2671.12,0.00035616,2]
[314556859,1708421437699,-500.0,0.00035616,2]
[314556860,1708421437708,-723.22,0.00035616,2]
[314556861,1708421437717,-1126.12,0.00035616,2]
[314556862,1708421437727,-1088.68,0.00035616,2]
[314556863,1708421437736,-194.83737115,0.00035616,2]
[314556864,1708421437745,-756.54,0.00035616,2]
[314556865,1708421437754,-500.0,0.00035616,2]
[314556866,1708421437764,-500.0,0.00035616,2]
[314556867,1708421437773,-3236.36,0.00035616,2]
[314556868,1708421437782,-686.07,0.00035616,2]
[314556869,1708421437792,-500.0,0.00035616,2]
[314556870,1708421437801,-788.21,0.00035616,2]
[314556871,1708421437810,-500.0,0.00035616,2]
[314556872,1708421437820,-779.83,0.00035616,2]
[314556873,1708421437829,-500.0,0.00035616,2]
[314556874,1708421437838,-780.14,0.00035616,2]
[314556875,1708421437847,-1365.29,0.00035616,2]
[314556876,1708421437856,-1553.23,0.00035616,2]
[314556877,1708421437865,-1188.66,0.00035616,2]
[314556878,1708421437875,-1104.01,0.00035616,2]
[314556879,1708421437884,-521.18,0.00035616,2]
[314556880,1708421437893,-985.27,0.00035616,2]
[314556881,1708421437905,-254.96569712,0.00035616,2]
[314556882,1708421437914,-2567.85,0.00035616,2]
[314556883,1708421437924,-1219.47,0.00035616,2]
[314556884,1708421437933,-683.28,0.00035616,2]
[314556885,1708421437942,-500.0,0.00035616,2]
[314556886,1708421437951,-500.0,0.00035616,2]
[314556887,1708421437960,-1723.2,0.00035616,2]
[314556888,1708421437970,-602.44671112,0.00035616,2]
[314556889,1708421437979,-756.5,0.00035616,2]
[314556890,1708421437988,-1174.35,0.00035616,2]
[314556891,1708421437997,-547.95863561,0.00035616,2]
[314556892,1708421438007,-500.0,0.00035616,2]
[314556893,1708421438016,-4236.0,0.00035616,2]
[314556894,1708421438025,-787.75,0.00035616,2]
[314556895,1708421438034,-500.0,0.00035616,2]
[314556896,1708421438043,-1837.25,0.00035616,2]
[314556897,1708421438052,-850.24,0.00035616,2]
[314556898,1708421438061,-500.0,0.00035616,2]
[314556899,1708421438070,-534.03458242,0.00035616,2]
[314556900,1708421438079,-940.97,0.00035616,2]
[314556901,1708421438089,-500.0,0.00035616,2]
[314556902,1708421438098,-500.0,0.00035616,2]
[314556903,1708421438107,-1034.47,0.00035616,2]
[314556904,1708421438117,-4915.97,0.00035616,2]
[314556905,1708421438126,-1388.19,0.00035616,2]
[314556906,1708421438135,-500.0,0.00035616,2]
[314556907,1708421438144,-500.0,0.00035616,2]
[314556908,1708421438156,-500.0,0.00035616,2]
[314556909,1708421438165,-7103.82,0.00035616,2]
[314556910,1708421438174,-1136.6,0.00035616,2]
[314556911,1708421438183,-500.0,0.00035616,2]
[314556912,1708421438192,-500.0,0.00035616,2]
[314556913,1708421438201,-500.0,0.00035616,2]
[314556914,1708421438211,-500.0,0.00035616,2]
[314556915,1708421438220,-500.0,0.00035616,2]
[314556916,1708421438229,-1316.56,0.00035616,2]
[314556917,1708421438238,-783.34,0.00035616,2]
[314556918,1708421438247,-500.0,0.00035616,2]
[314556919,1708421438256,-864.53,0.00035616,2]
[314556920,1708421438266,-2601.41,0.00035616,2]
[314556921,1708421438275,-500.0,0.00035616,2]
[314556922,1708421438285,-500.0,0.00035616,2]
[314556923,1708421438294,-500.0,0.00035616,2]
[314556924,1708421438305,-913.76,0.00035616,2]
[314556925,1708421438314,-664.1,0.00035616,2]
[314556926,1708421438323,-811.61,0.00035616,2]
[314556927,1708421438332,-1280.13,0.00035616,2]
[314556928,1708421438341,-500.0,0.00035616,2]
[314556929,1708421438351,-500.0,0.00035616,2]
[314556930,1708421438360,-1114.19,0.00035616,2]
[314556931,1708421438369,-500.0,0.00035616,2]
[314556932,1708421438379,-161.75,0.00035616,2]
[314556933,1708421438388,-500.0,0.00035616,2]
[314556934,1708421438397,-500.0,0.00035616,2]
[314556935,1708421438410,-500.0,0.00035616,2]
[314556936,1708421438419,-628.48,0.00035616,2]
[314556937,1708421438428,-500.0,0.00035616,2]
[314556938,1708421438438,-500.0,0.00035616,2]
[314556939,1708421438447,-500.0,0.00035616,2]
[314556940,1708421438456,-588.53,0.00035616,2]
[314556941,1708421438465,-500.0,0.00035616,2]
[314556942,1708421438475,-500.0,0.00035616,2]
[314556943,1708421438484,-1384.33,0.00035616,2]
[314556944,1708421438494,-500.0,0.00035616,2]
[314556945,1708421438503,-1864.76,0.00035616,2]
[314556946,1708421438512,-500.0,0.00035616,2]
[314556947,1708421438521,-874.02,0.00035616,2]
[314556948,1708421438532,-500.0,0.00035616,2]
[314556949,1708421438542,-500.0,0.00035616,2]
[314556950,1708421438552,-500.0,0.00035616,2]
[314556951,1708421438563,-576.66,0.00035616,2]
[314556952,1708421438573,-500.0,0.00035616,2]
[314556953,1708421438582,-500.0,0.00035616,2]
[314556954,1708421438592,-500.0,0.00035616,2]
[314556955,1708421438601,-733.83,0.00035616,2]
[314556956,1708421438611,-1090.46,0.00035616,2]
[314556957,1708421438621,-871.11,0.00035616,2]
[314556958,1708421438630,-500.0,0.00035616,2]
[314556959,1708421438641,-500.0,0.00035616,2]
[314556960,1708421438654,-1785.94,0.00035616,2]
[314556961,1708421438663,-3790.34461141,0.0003565,2]
[314556962,1708421438673,-3145.32012295,0.00035665,8]
[314556963,1708421438683,-182.06,0.00035685,2]
[314556964,1708421438693,-186.7677937,0.000357,2]
[314556965,1708421438702,-703.92511612,0.000357,2]
[314556966,1708421438711,-2787.63088894,0.000357,2]
[314556967,1708421438720,-199.18734602,0.000357,7]
[314556968,1708421438731,-198.83181963,0.00035706,7]
[314556969,1708421438740,-168.6966662,0.00035708,2]
[314556970,1708421438749,-3145.32012295,0.0003574,8]
[314556971,1708421438758,-152.96,0.00035763,2]
[314556972,1708421438767,-759.56669409,0.0003578,2]
[314556973,1708421438777,-206.36815221,0.0003578,4]
[314556974,1708421438786,-1076.93640484,0.00035799,4]
[314556975,1708421438795,-159.55918038,0.00035799,2]